lending/lending_fUSD_20250516
["ID","MTS","AMOUNT","RATE_DAILY","PERIOD"]
[361299340,1747435839549,-400.0,0.00016438,2]
[361299341,1747435839558,-361.76897388,0.00016438,2]
[361299342,1747435839615,-373.58102612,0.00016438,2]
[361299343,1747435839625,-400.0,0.00016438,2]
[361299344,1747435839634,-400.0,0.00016438,2]
[361299345,1747435839645,-400.0,0.00016438,2]
[361299346,1747435839654,-413.73232058,0.00016438,2]
[361299347,1747435839663,-542.58033303,0.00016438,2]
[361299348,1747435839672,-388.44357102,0.00016438,2]
[361299349,1747435839715,-111.55642898,0.00016438,2]
[361299350,1747435839724,-562.65889077,0.00016438,2]
[361299367,1747435840225,-1636.13110923,0.00016438,2]
[361299368,1747435840234,-400.0,0.00016438,2]
[361299369,1747435840246,-1512.53,0.00016438,2]
[361299370,1747435840255,-424.12,0.00016438,2]
[361299371,1747435840265,-400.0,0.00016438,2]
[361299372,1747435840274,-466.82,0.00016438,2]
[361299373,1747435840283,-500.0,0.00016438,2]
[361299374,1747435840293,-400.0,0.00016438,2]
[361299375,1747435840302,-400.0,0.00016438,2]
[361299376,1747435840312,-400.0,0.00016438,2]
[361299377,1747435840321,-400.0,0.00016438,2]
[361299378,1747435840331,-400.0,0.00016438,2]
[361299379,1747435840340,-496.72,0.00016438,2]
[361299380,1747435840350,-400.0,0.00016438,2]
[361299381,1747435840359,-1704.43,0.00016438,2]
[361299382,1747435840368,-400.0,0.00016438,2]
[361299383,1747435840378,-500.0,0.00016438,2]
[361299384,1747435840387,-787.44,0.00016438,2]
[361299385,1747435840396,-535.45063257,0.00016438,2]
[361299386,1747435840405,-400.0,0.00016438,2]
[361299387,1747435840413,-424.6,0.00016438,2]
[361299388,1747435840424,-642.6,0.00016438,2]
[361299389,1747435840433,-450.0,0.00016438,2]
[361299390,1747435840441,-566.87,0.00016438,2]
[361299391,1747435840449,-400.0,0.00016438,2]
[361299392,1747435840459,-454.52,0.00016438,2]
[361299393,1747435840468,-626.91,0.00016438,2]
[361299394,1747435840477,-753.49,0.00016438,2]
[361299395,1747435840486,-231.18778391,0.00016438,2]
[361299396,1747435840497,-1071.97,0.00016438,2]
[361299397,1747435840506,-995.85,0.00016438,2]
[361299398,1747435840516,-150.0,0.00016438,2]
[361299399,1747435840525,-966.63,0.00016438,2]
[361299400,1747435840535,-559.82,0.00016438,2]
[361299401,1747435840544,-411.24,0.00016438,2]
[361299402,1747435840553,-608.82,0.00016438,2]
[361299403,1747435840562,-400.0,0.00016438,2]
[361299404,1747435840571,-536.59,0.00016438,2]
[361299405,1747435840580,-441.24,0.00016438,2]
[361299406,1747435840589,-839.61,0.00016438,2]
[361299407,1747435840598,-400.0,0.00016438,2]
[361299408,1747435840607,-926.93,0.00016438,2]
[361299409,1747435840616,-801.54,0.00016438,2]
[361299410,1747435840625,-602.86,0.00016438,2]
[361299411,1747435840634,-151.0,0.00016438,2]
[361299412,1747435840644,-400.0,0.00016438,2]
[361299413,1747435840653,-401.28900843,0.00016438,2]
[361299414,1747435840662,-477.71,0.00016438,2]
[361299415,1747435840671,-264.487471,0.00016438,2]
[361299416,1747435840680,-400.0,0.00016438,2]
[361299417,1747435840689,-582.64,0.00016438,2]
[361299418,1747435840699,-400.0,0.00016438,2]
[361299419,1747435840708,-400.0,0.00016438,2]
[361299420,1747435840717,-151.0,0.00016438,2]
[361299421,1747435840726,-400.0,0.00016438,2]
[361299422,1747435840736,-400.0,0.00016438,2]
[361299423,1747435840747,-1477.07,0.00016438,2]
[361299424,1747435840755,-964.87,0.00016438,2]
[361299425,1747435840764,-698.7,0.00016438,2]
[361299426,1747435840774,-400.0,0.00016438,2]
[361299427,1747435840783,-318.92356915,0.00016438,2]
[361299428,1747435840793,-400.0,0.00016438,2]
[361299429,1747435840802,-617.19,0.00016438,2]
[361299430,1747435840812,-150.0,0.00016438,2]
[361299431,1747435840821,-400.0,0.00016438,2]
[361299432,1747435840830,-699.03,0.00016438,2]
[361299433,1747435840840,-400.0,0.00016438,2]
[361299434,1747435840850,-437.5,0.00016438,2]
[361299435,1747435840859,-400.0,0.00016438,2]
[361299436,1747435840869,-500.0,0.00016438,2]
[361299437,1747435840879,-500.0,0.00016438,2]
[361299438,1747435840889,-500.0,0.00016438,2]
[361299439,1747435840899,-400.0,0.00016438,2]
[361299440,1747435840908,-500.0,0.00016438,2]
[361299441,1747435840918,-500.0,0.00016438,2]
[361299442,1747435840928,-504.56,0.00016438,2]
[361299443,1747435840937,-500.0,0.00016438,2]
[361299444,1747435840947,-583.0,0.00016438,2]
[361299445,1747435840958,-732.69,0.00016438,2]
[361299446,1747435840968,-297.63923038,0.00016438,2]
[361299447,1747435840978,-594.05,0.00016438,2]
[361299448,1747435840988,-410.46916638,0.00016438,2]
[361299449,1747435841001,-1096.18,0.00016438,2]
[361299450,1747435841012,-400.0,0.00016438,2]
[361299451,1747435841021,-400.0,0.00016438,2]
[361299452,1747435841031,-400.0,0.00016438,2]
[361299453,1747435841041,-479.94,0.00016438,2]
[361299454,1747435841051,-400.0,0.00016438,2]
[361299455,1747435841060,-790.93,0.00016438,2]
[361299456,1747435841070,-859.51,0.00016438,2]
[361299457,1747435841080,-1165.72,0.00016438,2]
[361299458,1747435841090,-559.88,0.00016438,2]
[361299459,1747435841100,-419.26,0.00016438,2]
[361299460,1747435841110,-493.61,0.00016438,2]
[361299461,1747435841120,-790.27,0.00016438,2]
[361299462,1747435841130,-564.26,0.00016438,2]
[361299463,1747435841139,-400.0,0.00016438,2]
[361299464,1747435841149,-400.0,0.00016438,2]
[361299465,1747435841159,-568.27,0.00016438,2]
[361299466,1747435841168,-400.0,0.00016438,2]
[361299467,1747435841178,-400.0,0.00016438,2]
[361299468,1747435841188,-510.04,0.00016438,2]
[361299469,1747435841198,-924.5,0.00016438,2]
[361299470,1747435841208,-454.61,0.00016438,2]
[361299471,1747435841218,-1187.15,0.00016438,2]
[361299472,1747435841228,-610.69,0.00016438,2]
[361299473,1747435841237,-952.33,0.00016438,2]
[361299474,1747435841249,-400.0,0.00016438,2]
[361299475,1747435841259,-540.33,0.00016438,2]
[361299476,1747435841268,-773.88,0.00016438,2]
[361299477,1747435841278,-400.0,0.00016438,2]
[361299478,1747435841288,-435.95,0.00016438,2]
[361299479,1747435841297,-538.89,0.00016438,2]
[361299480,1747435841307,-1084.44,0.00016438,2]
[361299481,1747435841317,-1256.4,0.00016438,2]
[361299482,1747435841327,-1511.78,0.00016438,2]
[361299483,1747435841336,-413.56,0.00016438,2]
[361299484,1747435841346,-400.0,0.00016438,2]
[361299485,1747435841357,-596.99,0.00016438,2]
[361299486,1747435841366,-554.94,0.00016438,2]
[361299487,1747435841376,-400.0,0.00016438,2]
[361299488,1747435841386,-400.0,0.00016438,2]
[361299489,1747435841396,-445.81,0.00016438,2]
[361299490,1747435841406,-411.99,0.00016438,2]
[361299491,1747435841420,-1088.52,0.00016438,2]
[361299492,1747435841430,-839.64,0.00016438,2]
[361299493,1747435841439,-400.0,0.00016438,2]
[361299494,1747435841450,-400.0,0.00016438,2]
[361299495,1747435841461,-536.26,0.00016438,2]
[361299496,1747435841471,-400.0,0.00016438,2]
[361299497,1747435841481,-400.0,0.00016438,2]
[361299498,1747435841494,-400.0,0.00016438,2]
[361299499,1747435841504,-566.77,0.00016438,2]
[361299500,1747435841514,-400.0,0.00016438,2]
[361299501,1747435841524,-890.25,0.00016438,2]
[361299502,1747435841534,-450.0,0.00016438,2]
[361299503,1747435841544,-400.0,0.00016438,2]
[361299504,1747435841553,-794.67,0.00016438,2]
[361299505,1747435841563,-498.52,0.00016438,2]
[361299506,1747435841573,-984.14,0.00016438,2]
[361299507,1747435841583,-537.86,0.00016438,2]
[361299508,1747435841593,-420.93,0.00016438,2]
[361299509,1747435841602,-1049.89,0.00016438,2]
[361299510,1747435841612,-524.55,0.00016438,2]
[361299511,1747435841622,-400.0,0.00016438,2]
[361299512,1747435841631,-400.0,0.00016438,2]
[361299513,1747435841641,-400.0,0.00016438,2]
[361299514,1747435841650,-614.2,0.00016438,2]
[361299515,1747435841659,-400.0,0.00016438,2]
[361299516,1747435841668,-661.44,0.00016438,2]
[361299517,1747435841678,-400.0,0.00016438,2]
[361299518,1747435841688,-400.0,0.00016438,2]
[361299519,1747435841698,-610.55,0.00016438,2]
[361299520,1747435841709,-737.61,0.00016438,2]
[361299521,1747435841720,-1138.52,0.00016438,2]
[361299522,1747435841729,-400.0,0.00016438,2]
[361299523,1747435841738,-400.0,0.00016438,2]
[361299524,1747435841750,-400.0,0.00016438,2]
[361299525,1747435841759,-400.0,0.00016438,2]
[361299526,1747435841768,-447.59,0.00016438,2]
[361299527,1747435841777,-586.64,0.00016438,2]
[361299528,1747435841786,-1268.49,0.00016438,2]
[361299529,1747435841796,-516.63,0.00016438,2]
[361299530,1747435841805,-400.0,0.00016438,2]
[361299531,1747435841815,-400.0,0.00016438,2]
[361299532,1747435841825,-400.0,0.00016438,2]
[361299533,1747435841834,-400.0,0.00016438,2]
[361299534,1747435841844,-978.27,0.00016438,2]
[361299535,1747435841854,-424.6,0.00016438,2]
[361299536,1747435841864,-451.32,0.00016438,2]
[361299537,1747435841874,-624.4,0.00016438,2]
[361299538,1747435841883,-400.0,0.00016438,2]
[361299539,1747435841893,-607.72,0.00016438,2]
[361299540,1747435841903,-675.4,0.00016438,2]
[361299541,1747435841913,-471.48635607,0.00016438,2]
[361299542,1747435841934,-568.67364393,0.00016438,2]
[361299543,1747435841944,-400.0,0.00016438,2]
[361299544,1747435841954,-400.0,0.00016438,2]
[361299545,1747435841965,-859.49,0.00016438,2]
[361299546,1747435841974,-405.76,0.00016438,2]
[361299547,1747435841984,-1107.97,0.00016438,2]
[361299548,1747435841994,-1290.39,0.00016438,2]
[361299549,1747435842004,-400.0,0.00016438,2]
[361299550,1747435842014,-824.99,0.00016438,2]
[361299551,1747435842023,-790.41,0.00016438,2]
[361299552,1747435842033,-400.56,0.00016438,2]
[361299553,1747435842043,-400.0,0.00016438,2]
[361299554,1747435842052,-400.0,0.00016438,2]
[361299555,1747435842062,-513.57,0.00016438,2]
[361299556,1747435842071,-400.0,0.00016438,2]
[361299557,1747435842432,-1141.16,0.00016438,2]
[361299558,1747435842448,-400.0,0.00016438,2]
[361299559,1747435842458,-400.0,0.00016438,2]
[361299560,1747435842467,-416.05,0.00016438,2]
[361299561,1747435842476,-2203.51,0.00016438,2]
[361299562,1747435842486,-1873.62,0.00016438,2]
[361299563,1747435842495,-511.45369029,0.00016438,2]
[361299564,1747435842505,-465.5,0.00016438,2]
[361299565,1747435842514,-420.58,0.00016438,2]
[361299566,1747435842524,-972.34,0.00016438,2]
[361299567,1747435842533,-400.0,0.00016438,2]
[361299568,1747435842542,-422.11,0.00016438,2]
[361299569,1747435842552,-400.0,0.00016438,2]
[361299570,1747435842561,-862.45,0.00016438,2]
[361299571,1747435842571,-464.08,0.00016438,2]
[361299572,1747435842580,-400.0,0.00016438,2]
[361299573,1747435842589,-500.0,0.00016438,2]
[361299574,1747435842598,-458.01,0.00016438,2]
[361299575,1747435842608,-400.0,0.00016438,2]
[361299576,1747435842617,-400.0,0.00016438,2]
[361299577,1747435842627,-1414.21,0.00016438,2]
[361299578,1747435842636,-400.0,0.00016438,2]
[361299579,1747435842646,-400.0,0.00016438,2]
[361299580,1747435842656,-1123.62,0.00016438,2]
[361299581,1747435842666,-400.0,0.00016438,2]
[361299582,1747435842675,-480.47,0.00016438,2]
[361299583,1747435842684,-400.0,0.00016438,2]
[361299584,1747435842694,-400.0,0.00016438,2]
[361299585,1747435842703,-1308.17,0.00016438,2]
[361299586,1747435842712,-460.45665719,0.00016438,2]
[361299587,1747435842721,-863.67,0.00016438,2]
[361299588,1747435842730,-400.0,0.00016438,2]
[361299589,1747435842739,-1913.36,0.00016438,2]
[361299590,1747435842750,-400.0,0.00016438,2]
[361299591,1747435842760,-400.0,0.00016438,2]
[361299592,1747435842770,-1106.25,0.00016438,2]
[361299593,1747435842779,-400.0,0.00016438,2]
[361299594,1747435842789,-400.0,0.00016438,2]
[361299595,1747435842798,-400.0,0.00016438,2]
[361299596,1747435842808,-296.21269446,0.00016438,2]
[361299597,1747435842818,-400.0,0.00016438,2]
[361299598,1747435842827,-400.0,0.00016438,2]
[361299599,1747435842837,-400.0,0.00016438,2]
[361299600,1747435842846,-400.0,0.00016438,2]
[361299601,1747435842856,-756.1,0.00016438,2]
[361299602,1747435842867,-400.0,0.00016438,2]
[361299603,1747435842877,-622.15,0.00016438,2]
[361299604,1747435842886,-622.15,0.00016438,2]
[361299605,1747435842896,-622.15,0.00016438,2]
[361299606,1747435842906,-622.15,0.00016438,2]
[361299607,1747435842917,-400.0,0.00016438,2]
[361299608,1747435842926,-622.15,0.00016438,2]
[361299609,1747435842936,-622.15,0.00016438,2]
[361299611,1747435842946,-2084.08,0.00016438,2]
[361299613,1747435842955,-819.62,0.00016438,2]
[361299616,1747435842965,-400.0,0.00016438,2]
[361299618,1747435842975,-437.51,0.00016438,2]
[361299619,1747435842984,-800.62,0.00016438,2]
[361299621,1747435842995,-400.0,0.00016438,2]
[361299623,1747435843004,-1638.58,0.00016438,2]
[361299624,1747435843014,-400.0,0.00016438,2]
[361299625,1747435843024,-400.0,0.00016438,2]
[361299626,1747435843034,-400.0,0.00016438,2]
[361299627,1747435843044,-400.0,0.00016438,2]
[361299628,1747435843054,-400.0,0.00016438,2]
[361299629,1747435843064,-400.0,0.00016438,2]
[361299630,1747435843074,-596.36,0.00016438,2]
[361299631,1747435843083,-416.43,0.00016438,2]
[361299632,1747435843093,-400.0,0.00016438,2]
[361299633,1747435843103,-400.0,0.00016438,2]
[361299634,1747435843112,-795.48,0.00016438,2]
[361299635,1747435843122,-400.0,0.00016438,2]
[361299636,1747435843132,-1046.46,0.00016438,2]
[361299637,1747435843142,-727.1,0.00016438,2]
[361299638,1747435843151,-400.0,0.00016438,2]
[361299639,1747435843161,-1024.23,0.00016438,2]
[361299640,1747435843171,-400.0,0.00016438,2]
[361299641,1747435843180,-400.0,0.00016438,2]
[361299642,1747435843190,-1350.52,0.00016438,2]
[361299643,1747435843200,-400.0,0.00016438,2]
[361299644,1747435843210,-400.0,0.00016438,2]
[361299645,1747435843220,-726.31,0.00016438,2]
[361299646,1747435843230,-356.62484099,0.00016438,2]
[361299647,1747435843239,-2570.15904126,0.00016438,2]
[361299648,1747435843276,-5023.40000001,0.00016438,2]
[361299649,1747435843535,-602.7,0.00016438,2]
[361299650,1747435843556,-251.07463497,0.00016438,2]
[361299651,1747435843585,-1450.30632376,0.00016438,2]
[361299652,1747435843594,-457.51,0.00016438,2]
[361299653,1747435843604,-400.0,0.00016438,2]
[361299654,1747435843613,-400.0,0.00016438,2]
[361299655,1747435843622,-400.0,0.00016438,2]
[361299656,1747435843632,-580.59,0.00016438,2]
[361299657,1747435843642,-400.0,0.00016438,2]
[361299658,1747435843651,-604.35237624,0.00016438,2]
[361299728,1747435845853,-5912.06810969,0.00016338,2]
[361299729,1747435845862,-175.0,0.00016432,2]
[361299730,1747435845873,-551.0,0.00016438,2]
[361299731,1747435845883,-2314.60762376,0.00016438,2]
[361299732,1747435845893,-400.0,0.00016438,2]
[361299733,1747435845902,-400.0,0.00016438,2]
[361299734,1747435845912,-400.0,0.00016438,2]
[361299735,1747435845922,-400.0,0.00016438,2]
[361299736,1747435845931,-400.0,0.00016438,2]
[361299737,1747435845941,-919.79,0.00016438,2]
[361299738,1747435845950,-692.66,0.00016438,2]
[361299739,1747435845959,-400.0,0.00016438,2]
[361299740,1747435845968,-400.0,0.00016438,2]
[361299741,1747435845978,-637.82,0.00016438,2]
[361299742,1747435845988,-400.0,0.00016438,2]
[361299743,1747435845999,-3567.01,0.00016438,2]
[361299744,1747435846009,-476.53,0.00016438,2]
[361299745,1747435846019,-682.52,0.00016438,2]
[361299746,1747435846029,-400.0,0.00016438,2]
[361299747,1747435846039,-400.0,0.00016438,2]
[361299748,1747435846049,-400.0,0.00016438,2]
[361299749,1747435846058,-400.0,0.00016438,2]
[361299750,1747435846069,-643.77,0.00016438,2]
[361299751,1747435846078,-400.0,0.00016438,2]
[361299752,1747435846087,-400.0,0.00016438,2]
[361299753,1747435846097,-21505.91,0.00016438,2]
[361299754,1747435846106,-444.79,0.00016438,2]
[361299755,1747435846116,-400.0,0.00016438,2]
[361299756,1747435846126,-400.0,0.00016438,2]
[361299757,1747435846136,-502.91707348,0.00016438,2]
[361299758,1747435846145,-1409.18,0.00016438,2]
[361299759,1747435846154,-400.0,0.00016438,2]
[361299760,1747435846164,-518.43,0.00016438,2]
[361299761,1747435846173,-500.0,0.00016438,2]
[361299762,1747435846182,-871.71,0.00016438,2]
[361299763,1747435846192,-400.0,0.00016438,2]
[361299764,1747435846201,-675.37,0.00016438,2]
[361299765,1747435846210,-487.77955031,0.00016438,2]
[361299766,1747435846220,-725.84,0.00016438,2]
[361299767,1747435846237,-400.0,0.00016438,2]
[361299768,1747435846250,-938.78,0.00016438,2]
[361299769,1747435846260,-3823.83,0.00016438,2]
[361299770,1747435846269,-229.26076618,0.00016438,2]
[361299771,1747435846279,-400.0,0.00016438,2]
[361299772,1747435846288,-400.0,0.00016438,2]
[361299773,1747435846298,-20210.4,0.00016438,2]
[361299774,1747435846307,-400.0,0.00016438,2]
[361299775,1747435846317,-611.44,0.00016438,2]
[361299776,1747435846326,-1420.600588,0.00016438,2]
[361299777,1747435846335,-1420.600588,0.00016438,2]
[361299778,1747435846345,-1420.600588,0.00016438,2]
[361299779,1747435846355,-1420.600588,0.00016438,2]
[361299780,1747435846365,-400.0,0.00016438,2]
[361299781,1747435846375,-400.0,0.00016438,2]
[361299782,1747435846384,-400.0,0.00016438,2]
[361299783,1747435846393,-585.63,0.00016438,2]
[361299784,1747435846402,-400.0,0.00016438,2]
[361299785,1747435846414,-991.33,0.00016438,2]
[361299786,1747435846423,-1437.09,0.00016438,2]
[361299787,1747435846432,-2000.0,0.00016438,2]
[361299788,1747435846442,-317.01496294,0.00016438,2]
[361299789,1747435846451,-560.15,0.00016438,2]
[361299790,1747435846460,-560.69,0.00016438,2]
[361299791,1747435846469,-1432.86,0.00016438,2]
[361299792,1747435846479,-417.93,0.00016438,2]
[361299793,1747435846488,-795.59,0.00016438,2]
[361299794,1747435846498,-692.24,0.00016438,2]
[361299795,1747435846507,-400.0,0.00016438,2]
[361299796,1747435846517,-400.0,0.00016438,2]
[361299797,1747435846526,-406.91239022,0.00016438,2]
[361299798,1747435846535,-400.0,0.00016438,2]
[361299799,1747435846545,-911.49,0.00016438,2]
[361299800,1747435846554,-1308.45,0.00016438,2]
[361299801,1747435846563,-489.85,0.00016438,2]
[361299802,1747435846573,-400.0,0.00016438,2]
[361299803,1747435846582,-814.31,0.00016438,2]
[361299804,1747435846591,-571.92,0.00016438,2]
[361299805,1747435846600,-1826.71,0.00016438,2]
[361299806,1747435846610,-1623.71,0.00016438,2]
[361299807,1747435846619,-400.0,0.00016438,2]
[361299808,1747435846628,-593.25,0.00016438,2]
[361299809,1747435846637,-352.4,0.00016438,2]
[361299810,1747435846646,-400.0,0.00016438,2]
[361299811,1747435846655,-504.05,0.00016438,2]
[361299812,1747435846665,-407.64,0.00016438,2]
[361299813,1747435846674,-534.04,0.00016438,2]
[361299814,1747435846683,-469.1,0.00016438,2]
[361299815,1747435846692,-661.58,0.00016438,2]
[361299816,1747435846702,-1927.67,0.00016438,2]
[361299817,1747435846711,-11499.44,0.00016438,2]
[361299818,1747435846721,-400.0,0.00016438,2]
[361299819,1747435846730,-400.0,0.00016438,2]
[361299820,1747435846739,-556.69,0.00016438,2]
[361299821,1747435846750,-400.0,0.00016438,2]
[361299822,1747435846759,-400.0,0.00016438,2]
[361299823,1747435846769,-50222.433694,0.00016438,2]
[361299824,1747435846778,-400.0,0.00016438,2]
[361299825,1747435846787,-5735.318585,0.00016438,2]
[361299826,1747435846796,-400.0,0.00016438,2]
[361299827,1747435846805,-1027.41,0.00016438,2]
[361299828,1747435846814,-5735.318585,0.00016438,2]
[361299829,1747435846824,-50222.433694,0.00016438,2]
[361299830,1747435846833,-5735.318585,0.00016438,2]
[361299831,1747435846842,-50222.433694,0.00016438,2]
[361299832,1747435846851,-5735.318585,0.00016438,2]
[361299833,1747435846861,-50222.433694,0.00016438,2]
[361299834,1747435846871,-637.44,0.00016438,2]
[361299835,1747435846880,-400.0,0.00016438,2]
[361299836,1747435846890,-5122.36,0.00016438,2]
[361299837,1747435846899,-400.0,0.00016438,2]
[361299838,1747435846908,-1132.73,0.00016438,2]
[361299839,1747435846918,-711.07,0.00016438,2]
[361299840,1747435846927,-1698.43,0.00016438,2]
[361299841,1747435846937,-4539.37,0.00016438,2]
[361299842,1747435846947,-400.0,0.00016438,2]
[361299843,1747435846956,-400.0,0.00016438,2]
[361299844,1747435846966,-400.0,0.00016438,2]
[361299845,1747435846975,-1296.76,0.00016438,2]
[361299846,1747435846985,-400.0,0.00016438,2]
[361299847,1747435846994,-498.83,0.00016438,2]
[361299848,1747435847004,-1623.69,0.00016438,2]
[361299849,1747435847014,-1131.68,0.00016438,2]
[361299850,1747435847024,-400.0,0.00016438,2]
[361299851,1747435847033,-1734.53,0.00016438,2]
[361299852,1747435847043,-400.0,0.00016438,2]
[361299853,1747435847052,-400.0,0.00016438,2]
[361299854,1747435847062,-849.46,0.00016438,2]
[361299855,1747435847071,-1397.71,0.00016438,2]
[361299856,1747435847081,-1922.46,0.00016438,2]
[361299857,1747435847090,-913.44,0.00016438,2]
[361299858,1747435847100,-2216.0,0.00016438,2]
[361299859,1747435847109,-400.0,0.00016438,2]
[361299860,1747435847118,-400.0,0.00016438,2]
[361299861,1747435847128,-400.0,0.00016438,2]
[361299862,1747435847137,-400.0,0.00016438,2]
[361299863,1747435847147,-3137.42,0.00016438,2]
[361299864,1747435847157,-400.0,0.00016438,2]
[361299865,1747435847167,-1949.93,0.00016438,2]
[361299866,1747435847176,-988.48,0.00016438,2]
[361299867,1747435847185,-404.89,0.00016438,2]
[361299868,1747435847194,-1090.3,0.00016438,2]
[361299869,1747435847203,-448.77,0.00016438,2]
[361299870,1747435847212,-3093.7,0.00016438,2]
[361299871,1747435847222,-400.0,0.00016438,2]
[361299872,1747435847230,-297.19422968,0.00016438,2]
[361299873,1747435847239,-400.0,0.00016438,2]
[361299874,1747435847249,-462.47,0.00016438,2]
[361299875,1747435847258,-866.37,0.00016438,2]
[361299876,1747435847267,-400.0,0.00016438,2]
[361299877,1747435847276,-400.0,0.00016438,2]
[361299878,1747435847285,-400.0,0.00016438,2]
[361299879,1747435847294,-2034.05,0.00016438,2]
[361299880,1747435847303,-1525.54,0.00016438,2]
[361299881,1747435847312,-885.66,0.00016438,2]
[361299882,1747435847321,-413.18187418,0.00016438,2]
[361299883,1747435847330,-400.0,0.00016438,2]
[361299884,1747435847339,-916.72,0.00016438,2]
[361299885,1747435847351,-400.0,0.00016438,2]
[361299886,1747435847360,-2809.52,0.00016438,2]
[361299887,1747435847369,-731.78,0.00016438,2]
[361299888,1747435847379,-400.0,0.00016438,2]
[361299889,1747435847387,-894.21,0.00016438,2]
[361299890,1747435847397,-1072.89,0.00016438,2]
[361299891,1747435847407,-2531.38,0.00016438,2]
[361299892,1747435847418,-544.00789997,0.00016438,2]
[361299893,1747435847429,-1179.69,0.00016438,2]
[361299894,1747435847438,-348.87511888,0.00016438,2]
[361299895,1747435847447,-1913.58,0.00016438,2]
[361299896,1747435847458,-400.0,0.00016438,2]
[361299897,1747435847468,-733.75,0.00016438,2]
[361299898,1747435847477,-2531.45,0.00016438,2]
[361299899,1747435847486,-2240.33,0.00016438,2]
[361299900,1747435847497,-400.0,0.00016438,2]
[361299901,1747435847507,-10086.34,0.00016438,2]
[361299902,1747435847515,-400.0,0.00016438,2]
[361299903,1747435847525,-400.0,0.00016438,2]
[361299904,1747435847534,-400.0,0.00016438,2]
[361299905,1747435847544,-710.43,0.00016438,2]
[361299906,1747435847553,-400.0,0.00016438,2]
[361299907,1747435847562,-906.46,0.00016438,2]
[361299908,1747435847571,-400.0,0.00016438,2]
[361299909,1747435847580,-1919.15,0.00016438,2]
[361299910,1747435847589,-400.0,0.00016438,2]
[361299911,1747435847598,-327.105031,0.00016438,2]
[361299912,1747435847607,-3183.52,0.00016438,2]
[361299913,1747435847617,-436.87,0.00016438,2]
[361299914,1747435847626,-3338.67,0.00016438,2]
[361299915,1747435847636,-6361.46,0.00016438,2]
[361299916,1747435847645,-400.0,0.00016438,2]
[361299917,1747435847654,-400.0,0.00016438,2]
[361299918,1747435847663,-2538.38,0.00016438,2]
[361299919,1747435847672,-584.3,0.00016438,2]
[361299920,1747435847682,-441.52,0.00016438,2]
[361299921,1747435847692,-400.0,0.00016438,2]
[361299922,1747435847701,-400.0,0.00016438,2]
[361299923,1747435847710,-400.0,0.00016438,2]
[361299924,1747435847719,-589.21,0.00016438,2]
[361299925,1747435847729,-733.35,0.00016438,2]
[361299926,1747435847739,-532.71,0.00016438,2]
[361299927,1747435847748,-400.0,0.00016438,2]
[361299928,1747435847757,-2903.88,0.00016438,2]
[361299929,1747435847766,-3820.12,0.00016438,2]
[361299930,1747435847776,-2577.0,0.00016438,2]
[361299931,1747435847785,-972.79,0.00016438,2]